fUSD/lending_fUSD_20250327
["ID","MTS","AMOUNT","RATE_DAILY","PERIOD"]
[356741237,1743082246486,-2003.67650328,0.00015,2]
[356741238,1743082246515,689.41,0.000326,30]
[356741239,1743082246549,-1737.795682,0.00015,2]
[356741250,1743082246767,689.41,0.000326,30]
[356741268,1743082247020,689.41,0.000326,30]
[356741274,1743082247267,689.42034599,0.000326,30]
[356741275,1743082366883,154.30565,0.0001735,18]
[356741276,1743082367035,154.30565,0.0001985,23]
[356741277,1743082645533,2936.03705421,0.00013472,2]
[356741278,1743082645563,1756.44354513,0.00013472,2]
[356741279,1743082645598,1716.20128276,0.00013472,2]
[356741280,1743082645628,1259.01821462,0.00013472,2]
[356741281,1743082645657,2332.29990328,0.00013472,2]
[356741282,1743082672237,154.30565,0.0001853,20]
[356741283,1743082672441,154.30565,0.0001978,23]
[356741284,1743082685398,603.73715093,0.00013472,2]
[356741285,1743082685427,2936.03705421,0.00013472,2]
[356741286,1743082685455,1500.0,0.00013472,2]
[356741287,1743082685482,160.78579486,0.00013472,2]
[356741288,1743082702564,-160.08132431,0.000148,2]
[356741289,1743082727682,-233.0,0.0001478,2]
[356741290,1743082738971,-150.0,0.00014765,2]
[356741292,1743082809892,-200.0,0.00014234,2]
[356741293,1743082809917,-53.59912675,0.00014579,2]
[356741294,1743082865918,-171.8459276,0.00014245,2]
[356741295,1743082894748,-162.02913889,0.00014245,2]
[356741296,1743082914368,-223.89472112,0.00014198,2]
[356741297,1743082922474,-151.24,0.00014222,3]
[356741298,1743082929090,-76.10527888,0.00014198,2]
[356741299,1743082929113,-73.89472112,0.00014222,3]
[356741300,1743083034356,-150.0,0.00014138,2]
[356741301,1743083042904,-150.0,0.00014138,2]
[356741302,1743083146018,-150.0,0.00013699,2]
[356741303,1743083150389,1015.22,0.00012101,2]
[356741304,1743083151573,-0.81,0.00013699,2]
[356741305,1743083151598,-219.07,0.00014115,2]
[356741306,1743083221844,-243.88,0.00014058,2]
[356741307,1743083221871,-6.84787693,0.00014115,2]
[356741308,1743083226296,-217.15015615,0.00014115,2]
[356741309,1743083238413,-150.7605136,0.00014038,2]
[356741310,1743083274703,-157.98384103,0.00013959,2]
[356741311,1743083311825,2801.14425451,0.0003265,120]
[356741312,1743083342420,-292.5542481,0.00013959,2]
[356741313,1743083354659,-221.913149,0.00013882,2]
[356741314,1743083372862,-3260.35265421,0.00013882,2]
[356741316,1743083372915,-3260.35265421,0.00013882,2]
[356741317,1743083372965,-3260.35265421,0.00013882,2]
[356741318,1743083373011,-3260.35265421,0.00013882,2]
[356741319,1743083373071,-3260.35265421,0.00013882,2]
[356741320,1743083373123,-538.74141809,0.00013882,2]
[356741321,1743083373576,-153.53106896,0.00013882,2]
[356741322,1743083407740,-155.51008316,0.00013882,2]
[356741323,1743083412662,-150.0,0.00013882,2]
[356741324,1743083412756,-6493.00100974,0.00013882,2]
[356741325,1743083412781,-2000.0,0.00013882,2]
[356741326,1743083412814,-250.01,0.00013882,2]
[356741327,1743083412842,-150.0,0.00013885,2]
[356741328,1743083412865,-2300.46191087,0.00013959,2]
[356741329,1743083412889,-64.76015252,0.00014038,2]
[356741330,1743083412912,-40375.64,0.00014116,2]
[356741331,1743083412936,-1471.5,0.00014138,2]
[356741332,1743083412959,-500.0,0.00014173,2]
[356741333,1743083412982,-124.86527888,0.00014222,3]
[356741334,1743083413005,-1000.0,0.00014244,2]
[356741335,1743083413026,-1518.54493351,0.00014245,2]
[356741336,1743083413050,-1015.22,0.00014364,2]
[356741337,1743083413073,-350.0,0.00014514,3]
[356741338,1743083413095,-434.9709691,0.0001464,2]
[356741339,1743083413117,-300.0,0.000147,2]
[356741340,1743083413140,-129.93,0.00014765,2]
[356741341,1743083413162,-267.0,0.0001478,2]
[356741342,1743083413187,-150.0,0.00014799,2]
[356741343,1743083413213,-215.52066612,0.00014799,2]
[356741344,1743083413236,-3664.90867569,0.000148,2]
[356741345,1743083413260,-150.0,0.00014898,2]
[356741346,1743083413283,-500.0,0.00014898,2]
[356741347,1743083413306,-500.0,0.00014898,2]
[356741348,1743083413329,-500.0,0.00014898,2]
[356741349,1743083413353,-248.35455226,0.00014898,2]
[356741350,1743083413376,-500.0,0.00014898,2]
[356741351,1743083413399,-500.0,0.00014898,2]
[356741352,1743083413423,-500.0,0.00014898,2]
[356741353,1743083413448,-500.0,0.00014898,2]
[356741354,1743083413471,-500.0,0.00014898,2]
[356741355,1743083413494,-500.0,0.00014898,2]
[356741356,1743083413517,-500.0,0.00014898,2]
[356741357,1743083413540,-500.0,0.00014898,2]
[356741358,1743083413563,-258.31164837,0.000149,2]
[356741359,1743083413592,-158.8258547,0.000149,2]
[356741360,1743083413619,-15187.3621988,0.000149,2]
[356741361,1743083413645,-251.94401132,0.000149,2]
[356741362,1743083413668,-87945.48557254,0.000149,2]
[356741363,1743083413693,-2411.0,0.00014959,2]
[356741364,1743083413714,-500.0,0.00014973,2]
[356741365,1743083413736,-151.29318758,0.00014973,2]
[356741366,1743083413759,-500.0,0.00014973,2]
[356741367,1743083413783,-1174.0,0.00015,2]
[356741368,1743083413811,-2772787.089378,0.00015,2]
[356741369,1743083421336,-150.0,0.00014016,2]
[356741370,1743083421870,-21.8459,0.00014016,2]
[356741371,1743083421892,-1290.249631,0.00014925,2]
[356741372,1743083421914,-1098.0,0.00015,2]
[356741373,1743083421940,-97589.904469,0.00015,2]
[356741377,1743083431631,-860.0,0.00015,2]
[356741378,1743083431643,-132.0,0.00015,2]
[356741379,1743083431652,-950.7130001,0.00015,2]
[356741380,1743083431859,-837.61778299,0.00015,2]
[356741381,1743083431871,-937.5744,0.00015,2]
[356741382,1743083431915,-258.258,0.00014999,2]
[356741384,1743083431927,-380.44806136,0.00014999,2]
[356741386,1743083431936,-82696.20523199,0.00015,2]
[356741387,1743083431953,-121535.81686447,0.00015,2]
[356741388,1743083431962,-2683746.48394608,0.00015,2]
[356741389,1743083431971,-151.0,0.00015,2]
[356741390,1743083431980,-151.0,0.00015,2]
[356741391,1743083431989,-151.0,0.00015,2]
[356741392,1743083431998,-151.992214,0.00015,2]
[356741393,1743083432007,-717.4568914,0.00015009,2]
[356741394,1743083432016,-5222.676839,0.00015019,2]
[356741395,1743083432026,-1500.4341096,0.00015029,2]
[356741396,1743083432035,-540.6745732,0.00015039,2]
[356741398,1743083432045,-158.61,0.00015071,2]
[356741400,1743083432054,-241.1891411,0.00015091,2]
[356741402,1743083432063,-158.61,0.00015103,2]
[356741404,1743083432072,-4041.6,0.00015111,2]
[356741406,1743083432084,-158.61,0.00015135,2]
[356741408,1743083432093,-158.61,0.00015166,2]
[356741410,1743083432102,-158.61,0.00015198,2]
[356741412,1743083432111,-158.61,0.0001523,2]
[356741414,1743083432120,-158.61,0.00015261,2]
[356741416,1743083432130,-150.0,0.0001527,2]
[356741418,1743083432139,-612.95,0.0001527,2]
[356741420,1743083432149,-2547.25,0.0001527,2]
[356741422,1743083432158,-23900.0,0.00015275,2]
[356741424,1743083432167,-158.61,0.00015293,2]
[356741426,1743083432177,-158.61,0.00015325,2]
[356741428,1743083432186,-150.0,0.00015354,2]
[356741430,1743083432197,-158.61,0.00015357,2]
[356741433,1743083432207,-158.61,0.00015388,2]
[356741436,1743083432216,-158.61,0.0001542,2]
[356741438,1743083432225,-158.61,0.00015452,2]
[356741440,1743083432234,-158.61,0.00015484,2]
[356741442,1743083432243,-250.0,0.00015489,2]
[356741444,1743083432252,-158.61,0.00015515,2]
[356741446,1743083432262,-200.0,0.00015533,2]
[356741448,1743083432272,-158.61,0.00015547,2]
[356741449,1743083432281,-158.61,0.00015579,2]
[356741452,1743083432291,-279.93,0.00015586,2]
[356741453,1743083432300,-158.61,0.0001561,2]
[356741455,1743083432309,-350.0,0.00015618,3]
[356741457,1743083432318,-158.61,0.00015642,2]
[356741459,1743083432327,-158.61,0.00015674,2]
[356741461,1743083432336,-166.69,0.00015835,2]
[356741463,1743083432345,-1422.3,0.00016,2]
[356741465,1743083432353,-800.0,0.00016,2]
[356741467,1743083432363,-255.0,0.0001603,2]
[356741469,1743083432372,-201.40995969,0.000162,2]
[356741471,1743083432381,-499.96728721,0.00016373,2]
[356741473,1743083432390,-279.93,0.00016406,2]
[356741475,1743083432399,-166.69,0.00016488,2]
[356741477,1743083432408,-250.0,0.00016523,2]
[356741479,1743083432417,-300.0,0.00016561,2]
[356741481,1743083432426,-1015.22,0.00016628,2]
[356741483,1743083432435,-169.36,0.00016679,2]
[356741485,1743083432445,-116221.29780853,0.00016859,2]
[356741487,1743083432457,-166.69,0.00017141,2]
[356741489,1743083432466,-279.93,0.00017226,2]
[356741491,1743083432476,-433.0,0.00017252,2]
[356741493,1743083432485,-920.94,0.0001734,2]
[356741495,1743083432495,-920.94,0.00017376,2]
[356741497,1743083432504,-920.94,0.00017413,2]
[356741499,1743083432513,-920.94,0.00017449,2]
[356741501,1743083432522,-920.94,0.00017486,2]
[356741503,1743083432531,-920.94,0.00017522,2]
[356741505,1743083432540,-920.94,0.00017559,2]
[356741507,1743083432549,-920.94,0.00017595,2]
[356741509,1743083432558,-920.94,0.00017632,2]
[356741510,1743083432567,-920.94,0.00017668,2]
[356741512,1743083432577,-920.94,0.00017704,2]
[356741514,1743083432586,-9306.55,0.00017728,2]
[356741516,1743083432595,-3630.21,0.00017728,2]
[356741518,1743083432605,-9999.99,0.00017728,2]
[356741520,1743083432615,-30566.07,0.00017728,2]
[356741522,1743083432624,-3713.06,0.00017728,2]
[356741524,1743083432633,-1229.56,0.00017728,2]
[356741526,1743083432643,-299.99,0.00017728,4]
[356741528,1743083432653,-245.41,0.00017728,2]
[356741530,1743083432662,-279.41,0.00017728,2]
[356741532,1743083432672,-999.99,0.00017728,2]
[356741534,1743083432681,-2287.49,0.00017728,2]
[356741536,1743083432691,-216.54,0.00017728,2]
[356741538,1743083432703,-9999.99,0.00017728,2]
[356741541,1743083432712,-1121.33,0.00017728,2]
[356741543,1743083432722,-150.99,0.00017728,2]
[356741545,1743083432731,-9999.99,0.00017728,2]
[356741546,1743083432740,-15235.62,0.00017728,2]
[356741548,1743083432749,-920.94,0.00017741,2]
[356741550,1743083432759,-502.65726369,0.00017773,2]
[356741553,1743083432778,-920.94,0.00017777,2]
[356741556,1743083432789,-166.69,0.00017795,2]
[356741558,1743083432798,-920.94,0.00017814,2]
[356741560,1743083432807,-920.94,0.0001785,2]
[356741561,1743083432818,-920.94,0.00017887,2]
[356741563,1743083432829,-920.94,0.00017923,2]
[356741565,1743083432838,-300.0,0.00017931,2]
[356741585,1743083433019,-920.94,0.0001796,2]
[356741586,1743083433038,-168.15,0.00017988,2]
[356741588,1743083433048,-920.94,0.00017996,2]
[356741589,1743083433058,-920.94,0.00018033,2]
[356741590,1743083433068,-279.93,0.00018047,2]
[356741591,1743083433078,-83015.53,0.00018356,2]
[356741592,1743083433088,-27893.63788518,0.00018366,2]
[356741593,1743083433099,-201.43,0.00018414,2]
[356741594,1743083433109,-377.48,0.00018414,2]
[356741595,1743083433118,-150.0,0.00018414,2]
[356741596,1743083433128,-1000.0,0.00018414,2]
[356741597,1743083433138,-2872.29,0.00018414,2]
[356741598,1743083433147,-150.0,0.00018414,7]
[356741599,1743083433156,-1000.0,0.00018414,2]
[356741600,1743083433166,-156.13865719,0.00018414,2]
[356741601,1743083433175,-1000.0,0.00018441,2]
[356741602,1743083433184,-500.0,0.00018442,2]
[356741603,1743083433193,-166.69,0.00018448,2]
[356741604,1743083433204,-201.43,0.00018453,2]
[356741605,1743083433214,-1000.0,0.00018469,2]
[356741606,1743083433223,-894.47298684,0.00018469,2]
[356741607,1743083433232,-201.43,0.00018491,2]
[356741608,1743083433241,-1000.0,0.00018496,2]
[356741609,1743083433250,-1000.0,0.00018524,2]
[356741610,1743083433260,-201.43,0.0001853,2]
[356741611,1743083433269,-1000.0,0.00018551,2]
[356741612,1743083433278,-736.75,0.00018561,2]
[356741613,1743083433287,-422.0,0.00018563,2]
[356741614,1743083433298,-201.43,0.00018569,2]
[356741615,1743083433307,-1000.0,0.00018578,2]
[356741616,1743083433316,-172.81,0.000186,2]
[356741617,1743083433325,-1000.0,0.00018606,2]
[356741618,1743083433334,-201.43,0.00018608,2]
[356741619,1743083433344,-1000.0,0.00018633,2]
[356741620,1743083433353,-201.43,0.00018646,2]
[356741621,1743083433363,-1000.0,0.00018661,2]
[356741622,1743083433374,-201.43,0.00018685,2]
[356741623,1743083433388,-1000.0,0.00018688,2]
[356741624,1743083433397,-1000.0,0.00018715,2]
[356741625,1743083433407,-201.43,0.00018724,2]
[356741626,1743083433417,-1000.0,0.00018743,2]
[356741627,1743083433427,-201.43,0.00018763,2]
[356741628,1743083433436,-1000.0,0.0001877,2]
[356741629,1743083433446,-1000.0,0.00018798,2]
[356741630,1743083433458,-201.43,0.00018801,2]
[356741631,1743083433467,-1000.0,0.00018825,2]
[356741632,1743083433478,-201.43,0.0001884,2]
[356741633,1743083433488,-1000.0,0.00018852,2]
[356741634,1743083433497,-279.93,0.00018867,2]
[356741635,1743083433507,-201.43,0.00018879,2]
[356741636,1743083433517,-1000.0,0.0001888,2]
[356741637,1743083433527,-1015.22,0.00018892,2]
[356741638,1743083433537,-1000.0,0.00018907,2]
[356741639,1743083433547,-201.43,0.00018918,2]
[356741640,1743083433557,-1000.16745512,0.00018935,2]
[356741641,1743083433567,-201.43,0.00018957,2]
[356741642,1743083433577,-201.43,0.00018995,2]
[356741643,1743083433587,-29269.06929489,0.00019,2]
[356741644,1743083433596,-493.91889496,0.00019,2]
[356741645,1743083433606,-151.0,0.00019,2]
[356741646,1743083433616,-151.0,0.00019,2]
[356741647,1743083433625,-151.0,0.00019,2]
[356741648,1743083433635,-151.0,0.00019,2]
[356741649,1743083433645,-151.0,0.00019,2]
[356741650,1743083433654,-151.0,0.00019,2]
[356741651,1743083433664,-310.24179587,0.00019,2]
[356741652,1743083433673,-273.59,0.00019015,2]
[356741653,1743083433683,-201.43,0.00019034,2]
[356741654,1743083433692,-273.59,0.00019055,2]
[356741655,1743083433703,-201.43,0.00019073,2]
[356741656,1743083433714,-273.59,0.00019095,2]
[356741657,1743083433723,-201.43,0.00019112,2]
[356741658,1743083433733,-273.59,0.00019135,2]
[356741659,1743083433742,-201.43,0.0001915,2]
[356741660,1743083433752,-273.59,0.00019175,2]
[356741661,1743083433763,-150.62073894,0.00019178,2]
[356741662,1743083433772,-273.59,0.00019215,2]
[356741663,1743083433782,-273.59,0.00019255,2]
[356741664,1743083433792,-273.59,0.00019295,2]
[356741665,1743083433802,-505.53470637,0.00019316,2]
[356741666,1743083433811,-273.59,0.00019335,2]
[356741667,1743083433822,-273.59,0.00019375,2]
[356741668,1743083433833,-1281.0,0.00019377,2]
[356741669,1743083433843,-644.278,0.00019377,2]
[356741670,1743083433852,-2037.0,0.00019377,2]
[356741671,1743083433863,-1421.0,0.00019377,2]
[356741672,1743083433872,-655.111,0.00019377,2]
[356741673,1743083433882,-790.0,0.00019377,2]
[356741674,1743083433891,-1273.0,0.00019377,2]
[356741675,1743083433901,-544.794,0.00019377,2]
[356741676,1743083433913,-907.0,0.00019377,2]
[356741677,1743083433923,-4086.0,0.00019377,2]
[356741678,1743083433932,-1452.035,0.00019377,2]
[356741679,1743083433941,-3944.0,0.00019377,2]
[356741680,1743083433951,-151.0,0.00019377,2]
[356741681,1743083433961,-273.59,0.00019415,2]
[356741682,1743083433971,-273.59,0.00019455,2]
[356741683,1743083433981,-273.59,0.00019495,2]
[356741684,1743083433990,-273.59,0.00019535,2]
[356741685,1743083434002,-273.59,0.00019575,2]
[356741686,1743083434012,-273.59,0.00019615,2]
[356741687,1743083434021,-158.0116264,0.00019652,2]
[356741688,1743083434031,-273.59,0.00019655,2]
[356741689,1743083434041,-279.93,0.00019687,2]
[356741690,1743083434050,-273.59,0.00019695,2]
[356741691,1743083434060,-273.59,0.00019735,2]
[356741692,1743083434070,-273.59,0.00019775,2]
[356741693,1743083434079,-1000.0,0.00019779,2]
[356741694,1743083434089,-1000.0,0.00019849,2]
[356741695,1743083434098,-416.0829434,0.00019973,2]
[356741696,1743083434108,-252.07563376,0.00019973,2]
[356741697,1743083434117,-399123.5366812,0.0002,4]
[356741698,1743083434126,-85255.91944972,0.0002,4]
[356741699,1743083434136,-151.0,0.0002,2]
[356741700,1743083434145,-152.723025,0.0002,2]
[356741701,1743083434155,-151.0,0.0002,2]
[356741702,1743083434165,-152.247697,0.0002,2]
[356741703,1743083434175,-151.0,0.0002,2]
[356741704,1743083434185,-151.0,0.0002,2]
[356741705,1743083434194,-151.0,0.0002,2]
[356741706,1743083434206,-232.039533,0.0002,2]
[356741707,1743083434216,-232.039533,0.0002,2]
[356741708,1743083434225,-539.114244,0.0002,2]
[356741709,1743083434235,-539.114244,0.0002,2]
[356741710,1743083434244,-288.390472,0.0002,2]
[356741711,1743083434253,-288.390472,0.0002,2]
[356741712,1743083434263,-151.0,0.0002,2]
[356741713,1743083434272,-281.043096,0.0002,2]
[356741714,1743083434281,-155.861782,0.0002,2]
[356741715,1743083434291,-155.861782,0.0002,2]
[356741716,1743083434300,-151.0,0.0002,2]
[356741717,1743083434310,-279.743301,0.0002,2]
[356741718,1743083434319,-242.181007,0.0002,2]
[356741719,1743083434329,-242.181007,0.0002,2]
[356741720,1743083434339,-151.0,0.0002,2]
[356741721,1743083434349,-151.0,0.0002,2]
[356741722,1743083434358,-151.0,0.0002,2]
[356741723,1743083434368,-151.0,0.0002,2]
[356741724,1743083434378,-151.0,0.0002,2]
[356741725,1743083434387,-151.0,0.0002,2]
[356741726,1743083434397,-151.0,0.0002,2]
[356741727,1743083434407,-151.0,0.0002,2]
[356741728,1743083434416,-151.0,0.0002,2]
[356741729,1743083434427,-151.0,0.0002,2]
[356741730,1743083434436,-151.0,0.0002,2]
[356741731,1743083434446,-151.0,0.0002,2]
[356741732,1743083434457,-151.0,0.0002,2]
[356741733,1743083434466,-151.0,0.0002,2]
[356741734,1743083434475,-151.0,0.0002,2]
[356741735,1743083434485,-151.0,0.0002,2]
[356741736,1743083434494,-151.0,0.0002,2]
[356741737,1743083434504,-151.0,0.0002,2]
[356741738,1743083434513,-151.0,0.0002,2]
[356741739,1743083434522,-151.0,0.0002,2]
[356741740,1743083434532,-151.0,0.0002,2]
[356741741,1743083434542,-199.81956,0.0002,2]
[356741742,1743083434551,-151.0,0.0002,2]
[356741743,1743083434561,-2126.77709,0.0002,2]
[356741744,1743083434571,-205.642549,0.0002,2]
[356741745,1743083434580,-2126.77709,0.0002,2]
[356741746,1743083434589,-158.304598,0.0002,2]
[356741747,1743083434599,-151.0,0.0002,2]
[356741748,1743083434608,-198.623279,0.0002,2]
[356741749,1743083434619,-198.623279,0.0002,2]
[356741750,1743083434629,-151.0,0.0002,2]
[356741751,1743083434641,-340.380474,0.0002,2]
[356741752,1743083434650,-340.380474,0.0002,2]
[356741753,1743083434659,-1136.191691,0.0002,2]
[356741754,1743083434668,-1136.191691,0.0002,2]
[356741755,1743083434678,-151.0,0.0002,2]
[356741756,1743083434687,-151.0,0.0002,2]
[356741757,1743083434697,-151.0,0.0002,2]
[356741758,1743083434707,-151.0,0.0002,2]
[356741759,1743083434716,-151.0,0.0002,2]
[356741760,1743083434726,-151.0,0.0002,2]
[356741761,1743083434735,-242.353825,0.0002,2]
[356741762,1743083434745,-2000.0,0.0002,4]
[356741763,1743083434755,-151.0,0.0002,2]
[356741764,1743083434765,-172.71,0.0002,2]
[356741765,1743083434775,-172.71,0.0002,2]
[356741766,1743083434784,-172.71,0.0002,2]
[356741767,1743083434794,-172.71,0.0002,2]
[356741768,1743083434803,-172.71,0.0002,2]
[356741769,1743083434813,-172.71,0.0002,2]
[356741770,1743083434825,-172.71,0.0002,2]
[356741771,1743083434835,-172.71,0.0002,2]
[356741772,1743083434845,-172.71,0.0002,2]
[356741773,1743083434854,-172.71,0.0002,2]
[356741774,1743083434865,-172.71,0.0002,2]
[356741775,1743083434874,-172.71,0.0002,2]
[356741776,1743083434884,-172.71,0.0002,2]
[356741777,1743083434893,-172.71,0.0002,2]
[356741778,1743083434904,-172.71,0.0002,2]
[356741779,1743083434914,-172.71,0.0002,2]
[356741780,1743083434924,-172.71,0.0002,2]
[356741781,1743083434933,-172.71,0.0002,2]
[356741782,1743083434943,-172.71,0.0002,2]
[356741783,1743083434953,-172.71,0.0002,2]
[356741784,1743083434963,-172.71,0.0002,2]
[356741785,1743083434973,-172.71,0.0002,2]
[356741786,1743083434982,-172.71,0.0002,2]
[356741787,1743083434992,-172.71,0.0002,2]
[356741788,1743083435001,-172.71,0.0002,2]
[356741789,1743083435011,-180.836658,0.0002,2]
[356741790,1743083435021,-172.71,0.0002,2]
[356741791,1743083435031,-172.71,0.0002,2]
[356741792,1743083435042,-172.71,0.0002,2]
[356741793,1743083435051,-172.71,0.0002,2]
[356741794,1743083435060,-172.71,0.0002,2]
[356741795,1743083435071,-172.71,0.0002,2]
[356741796,1743083435080,-172.71,0.0002,2]
[356741797,1743083435089,-172.71,0.0002,2]
[356741798,1743083435099,-172.71,0.0002,2]
[356741799,1743083435108,-172.71,0.0002,2]
[356741800,1743083435118,-151.0,0.0002,2]
[356741801,1743083435127,-1422.3,0.000201,2]
[356741802,1743083435138,-172.71,0.00020381,2]
[356741803,1743083435147,-258.31164833,0.00020391,2]
[356741804,1743083435157,-375.6882787,0.00020452,2]
[356741805,1743083435166,-279.93,0.00020508,2]
[356741806,1743083435176,-166.51,0.00020549,2]
[356741807,1743083435185,-377.48,0.00020716,2]
[356741808,1743083435195,-1000.0,0.00020716,2]
[356741809,1743083435206,-2000.0,0.00021,4]
[356741810,1743083435215,-4041.6,0.00021155,2]
[356741811,1743083435224,-1015.22,0.00021156,2]
[356741812,1743083435234,-279.93,0.00021328,2]
[356741813,1743083435243,-150.0,0.00021917,2]
[356741814,1743083435252,-500.0,0.00021918,2]
[356741815,1743083435262,-2000.0,0.00022,4]
[356741816,1743083435272,-279.93,0.00022148,2]
[356741817,1743083435286,-3944.0,0.00022377,2]
[356741818,1743083435306,-151.0,0.00022377,2]
[356741819,1743083435328,-271.91605679,0.00023,2]
[356741820,1743083435338,-2000.0,0.00023,4]
[356741821,1743083435348,-377.48,0.00023017,2]
[356741822,1743083435358,-1000.0,0.00023017,2]
[356741823,1743083435368,-150.0,0.00023287,2]
[356741824,1743083435377,-1015.22,0.0002342,2]
[356741825,1743083435386,-500.0,0.00023562,2]
[356741826,1743083435396,-295.48,0.00023836,2]
[356741827,1743083435406,-2000.0,0.00024,4]
[356741828,1743083435416,-150.0,0.00024657,2]
[356741829,1743083435428,-1000.0,0.00024658,2]
[356741830,1743083435438,-293.99,0.00024712,30]
[356741831,1743083435447,-172.71,0.0002479,2]
[356741832,1743083435457,-172.71,0.0002479,2]
[356741833,1743083435467,-172.71,0.0002479,2]
[356741834,1743083435476,-151.0,0.000248,7]
[356741835,1743083435485,-151.0,0.000248,7]
[356741836,1743083435494,-151.0,0.000248,7]
[356741837,1743083435504,-151.0,0.000248,7]
[356741838,1743083435514,-151.0,0.000248,7]
[356741839,1743083435523,-151.0,0.000248,7]
[356741840,1743083435533,-242.6596391,0.000248,2]
[356741841,1743083435542,-151.0,0.000248,7]
[356741842,1743083435551,-247.55186,0.000248,7]
[356741843,1743083435561,-151.0,0.000248,7]
[356741844,1743083435570,-151.0,0.000248,7]
[356741845,1743083435579,-151.0,0.000248,7]
[356741846,1743083435589,-159.447152,0.000248,7]
[356741847,1743083435598,-151.0,0.000248,7]
[356741848,1743083435608,-151.0,0.000248,7]
[356741849,1743083435617,-151.0,0.000248,7]
[356741850,1743083435627,-151.0,0.000248,7]
[356741851,1743083435637,-151.0,0.000248,7]
[356741852,1743083435646,-151.0,0.000248,7]
[356741853,1743083435656,-215.35648,0.000248,7]
[356741854,1743083435665,-151.0,0.000248,7]
[356741855,1743083435675,-242.181007,0.000248,7]
[356741856,1743083435684,-242.181007,0.000248,7]
[356741857,1743083435693,-151.0,0.000248,7]
[356741858,1743083435703,-151.0,0.000248,7]
[356741859,1743083435713,-151.0,0.000248,7]
[356741860,1743083435722,-170.20939,0.000248,7]
[356741861,1743083435731,-151.0,0.000248,7]
[356741862,1743083435741,-151.0,0.000248,7]
[356741863,1743083435751,-151.0,0.000248,7]
[356741864,1743083435760,-152.136005,0.000248,7]
[356741865,1743083435770,-152.6377,0.000248,7]
[356741866,1743083435779,-151.0,0.000248,7]
[356741867,1743083435789,-151.0,0.000248,7]
[356741868,1743083435798,-151.0,0.000248,7]
[356741869,1743083435809,-156.670565,0.000248,7]
[356741870,1743083435820,-159.474375,0.000248,7]
[356741871,1743083435832,-151.0,0.000248,7]
[356741872,1743083435842,-151.0,0.000248,7]
[356741873,1743083435851,-151.0,0.000248,7]
[356741874,1743083435861,-151.0,0.000248,7]
[356741875,1743083435871,-151.0,0.000248,7]
[356741876,1743083435880,-198.623279,0.000248,7]
[356741877,1743083435889,-198.623279,0.000248,7]
[356741878,1743083435900,-153.674176,0.000248,7]
[356741879,1743083435910,-317506.613891,0.000248,3]
[356741880,1743083435920,-151.656544,0.000248,7]